Cogmind - Beta 15 @@@ ROGUE MODE // 2025.08.09 @ 18:05:55 Player: saltine Result: Destroyed by 8R-AWN with 8R-AWN's Boregun Performance ------------- Evolutions (0) 0 Regions Visited (3) 600 Robots Destroyed (30) 150 Value Destroyed (569) 569 Prototype IDs (27) 540 Alien Tech Used (0) 0 Bonus (300) 300 TOTAL SCORE: 2159 Bonus ------- Aligned with FarCom 300 Cogmind --------- Core Integrity 0/250 Matter 407/500 Energy 158/250 System Corruption 0% Temperature Cool (0) Movement Treading (240) Ox1 Location -10/Exiles Parts ------- > --- POWER (1) -------- Ion Engine > --- PROPULSION (2) --- Light Treads Wheel > --- UTILITY (2) ------ Large Storage Unit High-capacity Matter Pod > --- WEAPON (2) ------- Longsword +1 > --- INVENTORY (15) --- Wheel High-capacity Storage Unit Assault Rifle Assault Rifle Autogun Autogun Autogun Autogun Autogun Autogun Mining Laser Peak State ------------ > --- POWER ------------ Ion Engine > --- PROPULSION ------- Light Treads Light Treads > --- UTILITY ---------- High-capacity Storage Unit High-capacity Matter Pod > --- WEAPON ----------- Autogun Longsword +1 > --- INVENTORY -------- Ion Engine Nuclear Core Fission Core Light Fission Core Light Treads Light Treads Wheel Wheel Large Storage Unit Seismic Detector Seismic Detector Assault Rifle Assault Rifle Autogun Autogun Autogun Autogun Autogun Grenade Launcher Mining Laser [Rating: 18] Favorites ----------- Power Ion Engine Engine Ion Engine Propulsion Light Treads Treads Light Treads Wheel Wheel Utility High-capacity Storage Unit Device Seismic Detector Storage High-capacity Storage Unit Weapon Autogun Energy Gun Medium Laser Ballistic Gun Autogun Launcher Grenade Launcher Special Weapon Mining Laser Slashing Weapon Longsword +1 Build | -11 -10 -10 -10 ------- Run | Yrd Mat Min Exi Slots Evolved . | . . . . Power . | . . . . Propulsion . | . . . . Utility . | . . . . Weapon . | . . . . Parts Attached 26 | 6 7 9 4 Power 3 | 1 1 1 . Engine 3 | 1 1 1 . Core . | . . . . Reactor . | . . . . Propulsion 6 | 2 . 1 3 Treads 5 | 2 . 1 2 Leg . | . . . . Wheel 1 | . . . 1 Hover . | . . . . Flight . | . . . . Utility 7 | 1 4 2 . Device 3 | . 2 1 . Storage 4 | 1 2 1 . Processor . | . . . . Hackware . | . . . . Protection . | . . . . Artifact . | . . . . Weapon 10 | 2 2 5 1 Energy Gun 1 | 1 . . . Energy Cannon . | . . . . Ballistic Gun 6 | 1 2 3 . Ballistic Cannon . | . . . . Launcher 1 | . . 1 . Special Weapon 1 | . . 1 . Impact Weapon . | . . . . Slashing Weapon 1 | . . . 1 Piercing Weapon . | . . . . Special Melee Weapon . | . . . . Unidentified Prototypes . | . . . . Parts Lost 8 | . 1 2 5 Power 2 | . . 1 1 Propulsion 4 | . . 1 3 Utility 1 | . 1 . . Weapon 1 | . . . 1 Highest Loss Streak 5 | . 1 1 5 To Critical Strikes . | . . . . Average Backups 17 | 2 14 19 18 Power 1 | . 1 1 1 Propulsion 3 | 1 3 4 3 Utility 2 | . 1 2 3 Weapon 9 | . 7 10 10 Tool/Special . | . . . . Unused Backups 11 | . 1 . 10 Power 3 | . . . 3 Propulsion 1 | . . . 1 Utility 1 | . . . 1 Weapon 6 | . 1 . 5 Tool/Special . | . . . . Average Slot Usage (%) 97 | . 94 98 99 Engine 13 | . 13 13 14 Treads 27 | . 27 28 27 Device 5 | . 9 10 . Storage 21 | . 14 17 28 Ballistic Gun 26 | . 27 25 26 Peak Build Rating 18 | 6 11 11 18 Average Rating 10 | 4 10 10 11 On Entrance 7 | . 6 11 11 Naked Turns . | . . . . Heaviest Build 55 | 13 52 55 55 Greatest Support 40 | 40 40 40 40 Greatest Overweight (x) 4 | 4 2 1 1 Average Overweight (x) . | . . 1 . Largest Inventory Capacity 20 | 8 20 20 20 Average Capacity 18 | 7 17 20 19 Most Carried 20 | 4 19 20 20 Average Carried 17 | 2 14 19 18 Final Capacity 20 | 8 20 20 15 Final Carried 19 | 4 19 18 11 Class Distribution -------------------- 100% | Mutant Dominant Class ---------------- Mutant | -10/Materials Mutant | -10/Mines Mutant | -10/Exiles Resources | -11 -10 -10 -10 ----------- Run | Yrd Mat Min Exi Matter Collected 1230 | 253 562 394 21 Remotely . | . . . . Salvage Created 779 | . 485 286 8 Parts 65 | . 42 23 . Haulers Intercepted 2 | . 2 . . Recyclers Shooed . | . . . . Parts Field Recycled . | . . . . Retrieved Matter . | . . . . Parts Self-Destructed . | . . . . Prevented . | . . . . Kills | -11 -10 -10 -10 ------- Run | Yrd Mat Min Exi Combat Hostiles Destroyed 27 | . 11 14 2 Guns 22 | . 11 11 . AOE 5 | . . 3 2 Classes Destroyed 7 | . 6 . 1 Tunneler 1 | . 1 . . Hauler 2 | . 2 . . Operator 1 | . 1 . . Watcher 1 | . 1 . . Swarmer 15 | . 6 9 . Grunt 10 | . 5 5 . Assembled 2 | . . . 2 Best Kill Streak 5 | . 5 3 2 Combat Bots Only 3 | . 3 3 2 Max Kills in Single Turn 2 | . 1 2 1 Gunslinging . | . . . . Exploded 2 | . . 2 1 Melee . | . . . . Uniques/NPCs Destroyed . | . . . . Combat | -11 -10 -10 -10 -------- Run | Yrd Mat Min Exi Hostile Shots Fired 192 | . 55 83 54 Missed 60 | . 15 26 19 Hits 132 | . 40 57 35 Projectile 132 | . 40 57 35 Critical Strikes 10 | . 1 . 9 Damage Taken 1567 | . 355 570 642 Core 251 | . 74 102 75 Absorbed by Shields . | . . . . Regen/Repaired (Parts) 74 | . 74 . . Core Remaining (%) 100 | 100 . . . Volleys Fired 78 | . 39 35 4 Largest 2 | . 2 2 1 Hottest 100 | . 46 100 30 Shots Fired 148 | . 78 66 4 Gun 140 | . 78 60 2 Cannon . | . . . . Launcher 4 | . . 2 2 Special 4 | . . 4 . Kinetic 140 | . 78 60 2 Thermal 4 | . . 4 . Explosive 4 | . . 2 2 Electromagnetic . | . . . . Robot Hit Streak 11 | . 6 11 9 Robot Miss Streak 8 | . 8 3 . Penetration Max . | . . . . Secondary Targets 2 | . 1 1 . Max Gunslinging Chain 1 | . 1 1 . Shots Hit Robots 98 | . 40 39 19 Core Hits 46 | . 23 17 6 Critical Kills 1 | . 1 . . Critical Parts Destroyed 1 | . 1 . . Critical Strikes 2 | . 2 . . Destroy 2 | . 2 . . Melee Attacks 17 | . . . 17 Impact . | . . . . Slashing 17 | . . . 17 Piercing . | . . . . Sneak Attacks . | . . . . Combat Hostiles . | . . . . Follow-up Attacks . | . . . . Damage Inflicted 2313 | . 687 788 838 Guns 1257 | . 628 629 . Cannons . | . . . . Explosions 263 | . . 157 106 Melee 732 | . . . 732 Ramming 61 | . 59 2 . Kinetic 1257 | . 628 629 . Thermal . | . . . . Explosive 263 | . . 157 106 Electromagnetic . | . . . . Impact . | . . . . Slashing 732 | . . . 732 Piercing . | . . . . Highest Corruption . | . . . . Average Corruption . | . . . . Corruption Purged . | . . . . Corruption Blocked . | . . . . Overload Shots . | . . . . Overflow Damage 11 | . . 11 . Projectiles . | . . . . Explosions 11 | . . 11 . Melee . | . . . . Knockbacks . | . . . . Impact . | . . . . Kinetic . | . . . . Secondary . | . . . . Self-Inflicted Damage 32 | . . 32 . Shots 1 | . . 1 . Rammed 12 | . 11 1 . Targets Rammed 12 | . 11 1 . Kicked . | . . . . Crushed . | . . . . Highest Temperature 50 | . 24 50 3 Average Temperature 13 | . 7 19 3 Received Heat Transfer 228 | . 63 165 . Siege Activations . | . . . . Martial Activations . | . . . . Shielding Activations . | . . . . Robots Disrupted . | . . . . Combat Hostiles . | . . . . Robots Corrupted . | . . . . Combat Hostiles . | . . . . Parts Fried . | . . . . Impact Corruptions . | . . . . Robots Melted . | . . . . Combat Hostiles . | . . . . Parts Melted . | . . . . Heat Transferred . | . . . . Parts Sabotaged . | . . . . Parts Stolen . | . . . . Parts Stripped . | . . . . Power Chain Reactions . | . . . . Alert | -11 -10 -10 -10 ------- Run | Yrd Mat Min Exi Maximum Alert Level . | . . . . Low Security (%) 100 | 100 100 100 . Level 1 . | . . . . Level 2 . | . . . . Level 3 . | . . . . Level 4 . | . . . . Level 5 . | . . . . High Security . | . . . . Max Security . | . . . . Peak Influence 111 | . 100 111 . Initial . | . . . . Average 22 | . 15 35 . Influence Increases 702 | . 336 366 . Destroy 0b10 Robot/C 500 | . 220 280 . Destroy 0b10 Robot/NC 25 | . 25 . . Destroy Leader 96 | . 56 40 . Successful Hack 32 | . 32 . . Disable Machine 15 | . . 15 . Destroy Structure 19 | . 3 16 . Lose Combat Pursuer 15 | . . 15 . Influence Decreases 702 | . 336 318 48 Entered New Map 48 | . . . 48 Time Decay 644 | . 336 308 . Lost Part 10 | . . 10 . Squads Dispatched 2 | . 2 . . Investigation 1 | . 1 . . Extermination . | . . . . Reinforcement 1 | . 1 . . Assault . | . . . . Garrison . | . . . . Intercept . | . . . . Searches Triggered . | . . . . Construction Impeded . | . . . . Haulers Reinforced . | . . . . Active Scanning Responses . | . . . . Cargo Convoy Interrupts . | . . . . Stealth | -11 -10 -10 -10 --------- Run | Yrd Mat Min Exi Distress Signals 3 | . 2 1 . Communications Jammed . | . . . . Distress Signals . | . . . . Times Spotted 43 | . 21 14 8 Peak Tracking Total 12 | . 5 3 12 Tactical Retreats 3 | . . 1 2 Traps | -11 -10 -10 -10 ------- Run | Yrd Mat Min Exi Traps Triggered 3 | . 3 . . Indirectly . | . . . . Trap Hack Attempts . | . . . . Triggered . | . . . . Disarmed . | . . . . Reprogrammed . | . . . . Reused . | . . . . Traps Extracted . | . . . . Installed . | . . . . Triggered . | . . . . Machines | -11 -10 -10 -10 ---------- Run | Yrd Mat Min Exi Machines Disabled 2 | . . 1 1 Max in Single Turn 1 | . . 1 1 Machines Repaired . | . . . . Machines Dismantled . | . . . . Machines Sabotaged . | . . . . Overloaded Fab Kills . | . . . . Hacking | -11 -10 -10 -10 --------- Run | Yrd Mat Min Exi Machines Accessed 10 | . 8 . 2 Terminals 6 | . 6 . . Fabricators . | . . . . Repair Stations 1 | . 1 . . Recycling Units 1 | . 1 . . Scanalyzers . | . . . . Garrison Access . | . . . . Total Hacks 25 | . 23 . 2 Successful 14 | . 12 . 2 Failed 10 | . 10 . . Catastrophic 1 | . 1 . . Database Lockouts 1 | . 1 . . Manual 11 | . 10 . 1 Terminals 18 | . 18 . . Fabricators . | . . . . Repair Stations 2 | . 2 . . Recycling Units 3 | . 3 . . Scanalyzers . | . . . . Garrison Access . | . . . . Terminal Hacks 10 | . 8 . 2 Record 1 | . . . 1 Robot Analysis 1 | . 1 . . Prototype ID Bank 3 | . 3 . . Locate Traps 1 | . 1 . . Hauler Manifests 1 | . 1 . . Registered Components 1 | . 1 . . Registered Prototypes 1 | . 1 . . Proto ID Catalog 1 | . . . 1 Fabricator Hacks . | . . . . Repair Station Hacks 2 | . 2 . . Scan Component 1 | . 1 . . Repair 1 | . 1 . . Recycling Unit Hacks 1 | . 1 . . Retrieve Components 1 | . 1 . . Scanalyzer . | . . . . Garrison Access Hacks . | . . . . Unauthorized Hacks 1 | . 1 . . Terminals 1 | . 1 . . Botnet 1 | . 1 . . Fabricators . | . . . . Repair Stations . | . . . . Recycling Units . | . . . . Scanalyzers . | . . . . Garrison Access . | . . . . Data Cores Recovered . | . . . . Used . | . . . . Hacking Detections 7 | . 7 . . Full Trace Events . | . . . . Feedback Events . | . . . . Feedback Blocked . | . . . . Robot Schematics Acquired . | . . . . Robots Built . | . . . . Authchips . | . . . . Time . | . . . . Total Robot Build Rating . | . . . . Part Schematics Acquired . | . . . . Parts Built . | . . . . Authchips . | . . . . Time . | . . . . Total Part Build Rating . | . . . . Parts Repaired 1 | . 1 . . Time 26 | . 26 . . Parts Recycled . | . . . . Recycled Matter . | . . . . Retrieved Matter . | . . . . Retrieved Components . | . . . . Parts Scanalyzed . | . . . . Part Schematics Acquired . | . . . . Parts Damaged . | . . . . Bothacking | -11 -10 -10 -10 ------------ Run | Yrd Mat Min Exi Used RIF Installer . | . . . . Robots Hacked . | . . . . Non-combat . | . . . . Combat . | . . . . Robot Hacks Applied . | . . . . Relay Couplers Released . | . . . . Fabnet Peak Effective % . | . . . . Robots Rewired . | . . . . Allies Hacked . | . . . . Hacks Repelled . | . . . . Allies | -11 -10 -10 -10 -------- Run | Yrd Mat Min Exi Total Allies . | . . . . Largest Group . | . . . . Highest-Rated Group . | . . . . Highest-Rated Ally . | . . . . Total Orders . | . . . . Ally Attacks . | . . . . Total Damage . | . . . . Kills . | . . . . Allies Corrupted . | . . . . Allies Melted . | . . . . Intel | -11 -10 -10 -10 ------- Run | Yrd Mat Min Exi Active Infowar (turns) 2000 | . 1172 828 . Seismic 2000 | . 1172 828 . Robot Analysis Total 1 | . 1 . . Derelict Logs Recovered 2 | . . 2 . Drone Launches . | . . . . Drone Recoveries . | . . . . Exploration | -11 -10 -10 -10 ------------- Run | Yrd Mat Min Exi Turns Passed 5221 | 82 1682 1124 2333 Spaces Moved 2093 | 45 696 418 934 Core 18 | 18 . . . Treads 2075 | 27 696 418 934 Legs . | . . . . Wheels . | . . . . Hover . | . . . . Flight . | . . . . Fastest Speed 50 | 50 160 240 160 Average Speed 226 | 156 205 240 239 Slowest Speed 320 | 250 320 240 240 Overloaded Moves . | . . . . Propulsion Burnouts . | . . . . Robots Hopped . | . . . . Potential Cave-ins . | . . . . Cave-ins Triggered . | . . . . Exploration Rate (%) 66 | 4 98 89 76 Regions Visited 3 Branch Regions 2 Pre-discovered Areas 1 | . . . 1 Known Exits Taken . | . . . . Unknown Exits Taken 3 | 1 1 1 . Scrap Searched 1 | . . 1 . Spaces Dug . | . . . . Terrain Destroyed 25 | . . 17 8 Melee . | . . . . Projectile . | . . . . AOE 25 | . . 17 8 Terrain Rammed . | . . . . Walls Destroyed . | . . . . Machines Disabled . | . . . . Actions | -11 -10 -10 -10 --------- Run | Yrd Mat Min Exi Total 2407 | 54 871 472 1010 Wait 133 | . 95 6 32 Move 2090 | 44 695 417 934 Hop . | . . . . Pick Up 23 | 4 14 . 5 Fast Attach 15 | 6 9 . . Attach 7 | . . 3 4 Detach 2 | . 1 1 . Swap 18 | . 4 9 5 Drop 11 | . 3 . 8 Fire 78 | . 39 35 4 Melee 17 | . . . 17 Ram . | . . . . Kick . | . . . . Crush 12 | . 11 1 . Escape Stasis . | . . . . Rewire 1 | . . . 1 Trap . | . . . . Miscellaneous . | . . . . Route ------- -11/Scrapyard -10/Materials (discovered 5 exits: [*Mat x3] / [*Min] / [*Sub]) -10/Mines (discovered 4 exits: [*Mat x2] / *Exi / [*Sub]) -10/Exiles History --------- Turn | Location | Event 26 | -11/Scrapyard | Discovered new exit (range 15) 83 | -11/Scrapyard | Entered Materials 317 | -10/Materials | Build established: Mutant 424 | -10/Materials | Discovered new exit (range 15) 806 | -10/Materials | Discovered new exit (range 14) 837 | -10/Materials | Central database locked down 1045 | -10/Materials | Discovered new exit (range 7) 1156 | -10/Materials | Discovered new exit (range 11) 1220 | -10/Materials | Discovered new exit (range 15) 1344 | -10/Materials | Repaired Lgt. Treads 1765 | -10/Materials | Entered Mines 1869 | -10/Mines | Discovered new exit (range 9) 2003 | -10/Mines | Discovered new exit (range 14) 2006 | -10/Mines | Excavation squad dispatched 2006 | -10/Mines | A large section of the Mines collapsed 2247 | -10/Mines | Learned Materials security intel 2445 | -10/Mines | Learned 2 Materials zone layouts 2655 | -10/Mines | Core integrity fell below 50% 2833 | -10/Mines | Discovered new exit (range 9) 2877 | -10/Mines | Deemed a non-threat by the Exiles lab entrance 2879 | -10/Mines | Discovered new exit (range 5) 2889 | -10/Mines | Entered Exiles 2949 | -10/Exiles | Met 8R-AWN 2990 | -10/Exiles | Met EX-HEX 3086 | -10/Exiles | Met EX-DEC 3096 | -10/Exiles | Learned location of Zion (-7) 3342 | -10/Exiles | Visited The Gauntlet 3546 | -10/Exiles | Met EX-BIN 3579 | -10/Exiles | Aligned with FarCom system 3582 | -10/Exiles | Given EX-Vault access code 3642 | -10/Exiles | Opened EX-Vault 3658 | -10/Exiles | Found Modified TNC 3736 | -10/Exiles | Warned to stay clear of 0b10 Research branches 4022 | -10/Exiles | Found Longsword +1 5085 | -10/Exiles | Attacked by the Exiles 5206 | -10/Exiles | Core integrity fell below 20% 5222 | -10/Exiles | Destroyed by 8R-AWN with 8R-AWN's Boregun Last Messages --------------- 05197_ Penetrated by HV Slug. 05197_ HV Slug penetrates Wall. 05201_ Penetrated by HV Slug. 05201_ Ion Engine destroyed. 05201_ Penetrated by HV Slug. 05203_ HV Slug penetrates Machine. 05203_ Penetrated by HV Slug. 05203_ Lgt. Treads destroyed. 05205_ Penetrated by HV Slug. 05205_ Lgt. Treads destroyed. 05205_ Penetrated by HV Slug. 05208_ Destroyed Prototype Protection. 05210_ HV Slug penetrates Machine. 05210_ Machine disabled. 05210_ HV Slug penetrates Machine. 05210_ Machine disabled. 05210_ HV Slug penetrates Wall. 05213_ Penetrated by HV Slug. 05213_ HV Slug penetrates Wall. 05215_ Penetrated by HV Slug. Map ----- +----------------------------------------------------+ | ?????????????????????????????????????????????????? | | ?????????????????????????????????????????????????? | | ?????????????????????????????????????????????????? | | ?????????????????????????????????????????????????? | | ?????????????????????????????????????????????????? | | ?????????????????????????????????????????????????? | | ?????????????????????????????????????????????????? | | ?????????????????????????????????????????????????? | | ?????????????????????????????????????????????????? | | ?????????????????????????????????????????????????" | | ????????????????????????????????????????????????#" | | ????????????????????????????????????????????????#" | | ????????????????????????????????????????????????#" | | ????????????????????????????????????????????????#" | | ?????????????????????????????????????????????????# | | ?????????????????????????????????????????????????? | | ?????????????????????????????????????????????????? | | ??????? ?????????????????????????????????????????? | | ??????? ??????????????#######???????????????????? | | ?????? ######???????#!!! "#???????????????????? | | ?????? #""#??????# "#???????????????????? | | ?????? ??????# "#???????????????????? | | ??????#" #????## ""#????????????####???? | | ???????" #####" ""#???????????? """??? | | ????????# ##" g""#????????????" """#?? | | ?????????# ; @ ###????????????" #?? | | ????????????# #?????????????"" #?? | | ????????????#### ##????????????"" "#?? | | ???????????????### "#???????????? ""??? | | ?????????######## ###???????????" "???? | | ?????????# !!""" " #??????# #???? | | ?????????#! !"###" # ##???### ###?# | | ?????????#!! !"#?## #####X# #"### | | ?????????#![ ##??# """" | | ?????????#[! " "###???# # " " | | ????????#"##"##;###?????#### % " | | ???????????#?# #???????????# | | ????????????? #?????????????### | | ???????????? ??????????????????## | | ??????????? ????????????????????## | | ?????????????????????????????????##" | | ??????????????????????????????????#""" | | ?????????????????????????????????##" | | ?????????????????????????????????#"" | | ?????????????????????????????????#""" "" | | ????????????????????????????????#""" """ | | ????????????????????????????????#""" "" | | ?????????????????????????????????"" # | | ?????????????????????????????????""" | | ?????????????????????????????????"" | +----------------------------------------------------+ Best States ------------- Heat Dissipation 25 Energy Generation 10 Energy Capacity 250 Matter Stores 500 Matter Capacity 500 Sight Range 16 Terrain Scan Density 10 Evasion (%) 40 Recoil Reduction 2 Item Schematics ----------------- None Robot Schematics ------------------ None Fabricated ------------ Nothing Repaired ---------- Lgt. Treads | 47% | -10/Materials Alien Tech Used ----------------- None Achievements -------------- None Challenges ------------ None Game ------ Seed SpikedSingularityRipper Manual? 0 Play Time 00:17:29 Cumulative 575.1 hours Start 2025.08.09 @ 14:17:16 End 2025.08.09 @ 18:05:55 Sessions 2 Manual Loads 0 Difficulty Rogue Special Mode None Game No. 243 Rogue 243 Adventurer 0 Explorer 0 Win Type - Total 27 Types 9/4/7/2/1/0/1/1/1/1 Lore% 92 Gallery% 87 Achievement% 81 Wizard Run 0 Options --------- Layout 0 ASCII 0 Keyboard 0 Movement Arrows Keybinds 0 Fullscreen 2 Font 18/SmallcapsGlow Map View 76x50 Zoom Use 0% Tactical HUD 1 Map Filters NONE Filters NONE Steam 1 RUN: b0ec2b9d-e0f2-4759-9604-878c999a9109